[Event "*** Titled Tuesday Blitz"]
[Site "Chess.com"]
[Date "2020.05.19"]
[Round "3"]
[White "Rsnr"]
[Black "Meri-Arabidze"]
[Result "0-1"]
[WhiteElo "2838"]
[BlackElo "2617"]
[TimeControl "180+1"]
[EndTime "12:29:22 PDT"]
[Termination "Meri-Arabidze won by resignation"]

1. d4 {[%clk 0:03:00.9]} 1... d5 {[%clk 0:02:59.5]} 2. c4 {[%clk 0:03:01.4]}
2... dxc4 {[%clk 0:02:58.7]} 3. e4 {[%clk 0:03:01.5]} 3... e5 {[%clk 0:02:57.2]}
4. Nf3 {[%clk 0:03:01.4]} 4... exd4 {[%clk 0:02:57.3]} 5. Bxc4 {[%clk
0:03:01.8]} 5... Nc6 {[%clk 0:02:57.6]} 6. O-O {[%clk 0:03:01.7]} 6... Be6
{[%clk 0:02:57.8]} 7. Bxe6 {[%clk 0:03:02]} 7... fxe6 {[%clk 0:02:58.6]} 8. Qb3
{[%clk 0:03:02.9]} 8... Qd7 {[%clk 0:02:59]} 9. Qxb7 {[%clk 0:03:03.1]} 9... Rb8
{[%clk 0:02:59.1]} 10. Qa6 {[%clk 0:03:03.8]} 10... Nf6 {[%clk 0:02:59.4]} 11.
Nbd2 {[%clk 0:03:01]} 11... Bd6 {[%clk 0:02:59.5]} 12. b3 {[%clk 0:02:58.3]}
12... O-O {[%clk 0:02:59.2]} 13. Bb2 {[%clk 0:02:58.4]} 13... e5 {[%clk
0:02:52.8]} 14. Rac1 {[%clk 0:02:50]} 14... Nb4 {[%clk 0:02:52.6]} 15. Qc4+
{[%clk 0:02:50.1]} 15... Qf7 {[%clk 0:02:51.5]} 16. Qxf7+ {[%clk 0:01:49.5]}
16... Rxf7 {[%clk 0:02:49.6]} 17. a4 {[%clk 0:01:04.5]} 17... Nd3 {[%clk
0:02:47.3]} 18. Rc2 {[%clk 0:01:04.9]} 18... Re7 {[%clk 0:02:32.6]} 19. Ba1
{[%clk 0:01:04.5]} 19... Nc5 {[%clk 0:02:30.4]} 20. Nxe5 {[%clk 0:00:39]} 20...
Rxe5 {[%clk 0:02:17.9]} 21. Bxd4 {[%clk 0:00:39.4]} 21... Ne6 {[%clk 0:01:48.8]}
22. Bxe5 {[%clk 0:00:22.6]} 22... Bxe5 {[%clk 0:01:49.7]} 23. Rc4 {[%clk
0:00:16.9]} 23... c5 {[%clk 0:01:45.4]} 24. Nf3 {[%clk 0:00:14.8]} 24... Bd4
{[%clk 0:01:33.7]} 25. Nxd4 {[%clk 0:00:08]} 25... cxd4 {[%clk 0:01:33.7]} 26.
e5 {[%clk 0:00:07.7]} 26... Ne4 {[%clk 0:01:23.3]} 27. Re1 {[%clk 0:00:03.8]}
27... N4c5 {[%clk 0:01:16.5]} 28. b4 {[%clk 0:00:02.6]} 28... Nd3 {[%clk
0:01:16.6]} 29. Rd1 {[%clk 0:00:02.4]} 29... Nxb4 {[%clk 0:01:14]} 30. Rb1
{[%clk 0:00:02.3]} 30... a5 {[%clk 0:01:13.7]} 31. g3 {[%clk 0:00:02.6]} 31...
d3 {[%clk 0:01:10]} 32. f4 {[%clk 0:00:02.4]} 32... Rd8 {[%clk 0:01:04.3]} 33.
Kf2 {[%clk 0:00:02.6]} 33... Nd4 {[%clk 0:00:52.9]} 34. Ke3 {[%clk 0:00:02.9]}
34... Ndc2+ {[%clk 0:00:49.8]} 35. Kd2 {[%clk 0:00:03.5]} 35... Na3 {[%clk
0:00:49.6]} 36. Rbxb4 {[%clk 0:00:03.1]} 36... axb4 {[%clk 0:00:48.5]} 37. Rxb4
{[%clk 0:00:04]} 37... Nc2 {[%clk 0:00:28.7]} 38. Rc4 {[%clk 0:00:03.7]} 38...
Ne3 {[%clk 0:00:21.3]} 39. Rc3 {[%clk 0:00:01.6]} 39... Nf1+ {[%clk 0:00:20.7]}
40. Kd1 {[%clk 0:00:02.3]} 40... Ne3+ {[%clk 0:00:18]} 41. Kd2 {[%clk
0:00:02.5]} 41... Nf1+ {[%clk 0:00:18.6]} 42. Kd1 {[%clk 0:00:03]} 42... d2
{[%clk 0:00:17.1]} 43. Rf3 {[%clk 0:00:03.1]} 43... Rc8 {[%clk 0:00:09.9]} 44.
Ke2 {[%clk 0:00:02.7]} 44... Rc1 {[%clk 0:00:09.4]} 45. Rd3 {[%clk 0:00:03.2]}
45... Re1+ {[%clk 0:00:09.3]} 46. Kf2 {[%clk 0:00:03.6]} 46... d1=Q {[%clk
0:00:09.6]} 47. Rxd1 {[%clk 0:00:04.5]} 47... Rxd1 {[%clk 0:00:10.4]} 0-1

[Event "*** Titled Tuesday Blitz"]
[Site "Chess.com"]
[Date "2020.05.19"]
[Round "3"]
[White "Leonid_Starozhilov"]
[Black "AustrianFalcon"]
[Result "0-1"]
[WhiteElo "2646"]
[BlackElo "2434"]
[TimeControl "180+1"]
[EndTime "12:29:22 PDT"]
[Termination "AustrianFalcon won on time"]

1. e4 {[%clk 0:03:00.9]} 1... g6 {[%clk 0:02:58.8]} 2. d4 {[%clk 0:03:00.3]}
2... Bg7 {[%clk 0:02:58.7]} 3. Nc3 {[%clk 0:02:59]} 3... d6 {[%clk 0:02:59.2]}
4. h3 {[%clk 0:02:58.9]} 4... a6 {[%clk 0:02:54.6]} 5. a4 {[%clk 0:02:55.6]}
5... Nf6 {[%clk 0:02:52.2]} 6. Be3 {[%clk 0:02:54.9]} 6... O-O {[%clk
0:02:50.5]} 7. g4 {[%clk 0:02:54.1]} 7... Nc6 {[%clk 0:02:48]} 8. Bg2 {[%clk
0:02:52]} 8... e5 {[%clk 0:02:35]} 9. Nge2 {[%clk 0:02:50.4]} 9... h5 {[%clk
0:02:13]} 10. g5 {[%clk 0:02:39.7]} 10... Nh7 {[%clk 0:02:08.5]} 11. h4 {[%clk
0:02:36.4]} 11... Bg4 {[%clk 0:01:49.7]} 12. f3 {[%clk 0:02:33]} 12... Bd7
{[%clk 0:01:45.6]} 13. Qd2 {[%clk 0:02:27]} 13... b5 {[%clk 0:01:34.4]} 14. d5
{[%clk 0:02:12.1]} 14... Na5 {[%clk 0:01:28.4]} 15. b3 {[%clk 0:02:06.3]} 15...
c5 {[%clk 0:01:13.9]} 16. dxc6 {[%clk 0:01:58]} 16... Bxc6 {[%clk 0:01:11.1]}
17. O-O {[%clk 0:01:52.8]} 17... Nb7 {[%clk 0:01:04.2]} 18. axb5 {[%clk
0:01:48.3]} 18... axb5 {[%clk 0:01:03.3]} 19. Nd5 {[%clk 0:01:46.2]} 19... Nc5
{[%clk 0:00:57.5]} 20. Rxa8 {[%clk 0:01:35.2]} 20... Bxa8 {[%clk 0:00:54.7]} 21.
Rd1 {[%clk 0:01:31.4]} 21... f5 {[%clk 0:00:49.7]} 22. Bxc5 {[%clk 0:00:44.3]}
22... dxc5 {[%clk 0:00:47.7]} 23. Qc3 {[%clk 0:00:44.4]} 23... Nxg5 {[%clk
0:00:25.1]} 24. hxg5 {[%clk 0:00:37.4]} 24... Qxg5 {[%clk 0:00:26]} 25. Qe3
{[%clk 0:00:33.6]} 25... f4 {[%clk 0:00:21.6]} 26. Qxc5 {[%clk 0:00:32.5]} 26...
h4 {[%clk 0:00:20.1]} 27. Qe7 {[%clk 0:00:21.5]} 27... Qh5 {[%clk 0:00:18.6]}
28. Nc7 {[%clk 0:00:13.3]} 28... h3 {[%clk 0:00:17.3]} 29. Qe6+ {[%clk
0:00:13.4]} 29... Rf7 {[%clk 0:00:17]} 30. Bxh3 {[%clk 0:00:09.3]} 30... Qxf3
{[%clk 0:00:16.6]} 31. Rd8+ {[%clk 0:00:08.6]} 31... Bf8 {[%clk 0:00:15.5]} 32.
Nxa8 {[%clk 0:00:05.5]} 32... Qe3+ {[%clk 0:00:13.5]} 33. Kh1 {[%clk 0:00:04]}
33... Qf3+ {[%clk 0:00:12.5]} 34. Bg2 {[%clk 0:00:03.4]} 34... Qh5+ {[%clk
0:00:11.7]} 35. Qh3 {[%clk 0:00:02.5]} 35... Qxe2 {[%clk 0:00:11.5]} 36. Qf3
{[%clk 0:00:02.8]} 36... Qe1+ {[%clk 0:00:10.7]} 37. Qf1 {[%clk 0:00:01.4]}
37... Qh4+ {[%clk 0:00:10.3]} 38. Kg1 {[%clk 0:00:02.1]} 38... Kg7 {[%clk
0:00:10.3]} 39. Qf3 {[%clk 0:00:02.6]} 39... Qe1+ {[%clk 0:00:08.2]} 40. Qf1
{[%clk 0:00:02.9]} 40... Bc5+ {[%clk 0:00:07.5]} 41. Kh2 {[%clk 0:00:02.7]}
41... Qg3+ {[%clk 0:00:07.3]} 42. Kh1 {[%clk 0:00:02.8]} 42... f3 {[%clk
0:00:07.6]} 43. Bh3 {[%clk 0:00:02.9]} 43... f2 {[%clk 0:00:06.6]} 44. Rd7
{[%clk 0:00:02.1]} 44... Qg1+ {[%clk 0:00:06]} 0-1

[Event "*** Titled Tuesday Blitz"]
[Site "Chess.com"]
[Date "2020.05.19"]
[Round "3"]
[White "hongnhung1234"]
[Black "jeaston1"]
[Result "0-1"]
[WhiteElo "2206"]
[BlackElo "2414"]
[TimeControl "180+1"]
[EndTime "12:29:22 PDT"]
[Termination "jeaston1 won by checkmate"]

1. e4 {[%clk 0:03:00.9]} 1... c5 {[%clk 0:02:49.5]} 2. Nc3 {[%clk 0:03:00.6]}
2... Nc6 {[%clk 0:02:42.6]} 3. f4 {[%clk 0:03:00.5]} 3... e6 {[%clk 0:02:40.8]}
4. Nf3 {[%clk 0:02:59.1]} 4... d5 {[%clk 0:02:40.5]} 5. Bb5 {[%clk 0:02:59]}
5... Be7 {[%clk 0:02:21.3]} 6. Ne5 {[%clk 0:02:53.3]} 6... Bd7 {[%clk
0:02:12.7]} 7. Nxd7 {[%clk 0:02:24.6]} 7... Qxd7 {[%clk 0:02:12.2]} 8. Qg4
{[%clk 0:02:23]} 8... Nf6 {[%clk 0:02:08.2]} 9. Qe2 {[%clk 0:02:14.2]} 9... d4
{[%clk 0:01:47]} 10. e5 {[%clk 0:02:08.8]} 10... dxc3 {[%clk 0:01:37.8]} 11.
exf6 {[%clk 0:02:08.6]} 11... cxb2 {[%clk 0:01:29.1]} 12. Bxb2 {[%clk
0:02:01.7]} 12... Bxf6 {[%clk 0:01:28.7]} 13. Bxf6 {[%clk 0:02:00.8]} 13... gxf6
{[%clk 0:01:26.6]} 14. O-O-O {[%clk 0:02:00.8]} 14... a6 {[%clk 0:01:17.9]} 15.
Bxc6 {[%clk 0:01:45.9]} 15... Qxc6 {[%clk 0:01:17]} 16. f5 {[%clk 0:01:43.6]}
16... O-O-O {[%clk 0:01:12.8]} 17. fxe6 {[%clk 0:01:41.6]} 17... fxe6 {[%clk
0:01:08.7]} 18. Rhf1 {[%clk 0:01:41.8]} 18... e5 {[%clk 0:01:07.4]} 19. d3
{[%clk 0:01:34.8]} 19... Kb8 {[%clk 0:01:03.4]} 20. Qf3 {[%clk 0:01:31.8]} 20...
Rd6 {[%clk 0:00:51.3]} 21. Qxc6 {[%clk 0:01:12]} 21... Rxc6 {[%clk 0:00:51.3]}
22. Rf5 {[%clk 0:01:12.2]} 22... Rg8 {[%clk 0:00:50.9]} 23. g3 {[%clk 0:01:12]}
23... Rg6 {[%clk 0:00:50.5]} 24. Rdf1 {[%clk 0:01:10.1]} 24... Rh6 {[%clk
0:00:48.2]} 25. R1f2 {[%clk 0:01:08.8]} 25... Kc7 {[%clk 0:00:47.1]} 26. Kd2
{[%clk 0:01:05.7]} 26... Kd7 {[%clk 0:00:46.3]} 27. Ke3 {[%clk 0:01:05.9]} 27...
Ke7 {[%clk 0:00:43.3]} 28. Ke4 {[%clk 0:01:03.8]} 28... Rd6 {[%clk 0:00:42.5]}
29. c3 {[%clk 0:01:00.5]} 29... Rg6 {[%clk 0:00:21]} 30. Ke3 {[%clk 0:00:52.1]}
30... Rb6 {[%clk 0:00:15.3]} 31. Rh5 {[%clk 0:00:43.3]} 31... h6 {[%clk
0:00:14.7]} 32. Rhf5 {[%clk 0:00:41.5]} 32... Rb1 {[%clk 0:00:14.8]} 33. R5f3
{[%clk 0:00:40]} 33... Ke6 {[%clk 0:00:12.1]} 34. g4 {[%clk 0:00:35.1]} 34... b5
{[%clk 0:00:11.9]} 35. h4 {[%clk 0:00:33.4]} 35... Rc1 {[%clk 0:00:11]} 36. h5
{[%clk 0:00:31.6]} 36... Rxg4 {[%clk 0:00:10.7]} 37. Rxf6+ {[%clk 0:00:32]}
37... Kd5 {[%clk 0:00:11.2]} 38. Rxh6 {[%clk 0:00:28.7]} 38... Rxc3 {[%clk
0:00:11]} 39. Kd2 {[%clk 0:00:25]} 39... Ra3 {[%clk 0:00:10.2]} 40. Kc1 {[%clk
0:00:19.5]} 40... Rg3 {[%clk 0:00:09.6]} 41. Kb2 {[%clk 0:00:19.1]} 41... Raxd3
{[%clk 0:00:08.3]} 42. Rh8 {[%clk 0:00:20]} 42... Rdf3 {[%clk 0:00:07.6]} 43.
Rd8+ {[%clk 0:00:20]} 43... Ke4 {[%clk 0:00:07.1]} 44. Rh2 {[%clk 0:00:19.8]}
44... Rh3 {[%clk 0:00:06.9]} 45. Re2+ {[%clk 0:00:19]} 45... Re3 {[%clk
0:00:06.9]} 46. Rxe3+ {[%clk 0:00:19.3]} 46... Kxe3 {[%clk 0:00:07.8]} 47. Rd6
{[%clk 0:00:18.5]} 47... Rxh5 {[%clk 0:00:06.9]} 48. Rxa6 {[%clk 0:00:19.4]}
48... e4 {[%clk 0:00:07.3]} 49. Rb6 {[%clk 0:00:18.8]} 49... c4 {[%clk
0:00:07.7]} 50. Rxb5 {[%clk 0:00:19.3]} 50... Rxb5+ {[%clk 0:00:07.1]} 51. Kc2
{[%clk 0:00:19.7]} 51... Rb8 {[%clk 0:00:08]} 52. a4 {[%clk 0:00:20]} 52... Ra8
{[%clk 0:00:08.9]} 53. Kc3 {[%clk 0:00:20]} 53... Rxa4 {[%clk 0:00:09.5]} 54.
Kc2 {[%clk 0:00:20.9]} 54... Ra8 {[%clk 0:00:09.8]} 55. Kd1 {[%clk 0:00:21.8]}
55... Rd8+ {[%clk 0:00:10.2]} 56. Kc2 {[%clk 0:00:22.5]} 56... Ke2 {[%clk
0:00:10.5]} 57. Kc1 {[%clk 0:00:23.4]} 57... e3 {[%clk 0:00:11.2]} 58. Kb2
{[%clk 0:00:23.9]} 58... Rd3 {[%clk 0:00:11.4]} 59. Ka2 {[%clk 0:00:24.8]} 59...
Kf2 {[%clk 0:00:12]} 60. Kb2 {[%clk 0:00:25]} 60... e2 {[%clk 0:00:12.9]} 61.
Ka2 {[%clk 0:00:25.9]} 61... e1=Q {[%clk 0:00:13.2]} 62. Kb2 {[%clk 0:00:26.8]}
62... Qe2+ {[%clk 0:00:13.8]} 63. Kc1 {[%clk 0:00:26.7]} 63... Rd1# {[%clk
0:00:14.7]} 0-1

[Event "*** Titled Tuesday Blitz"]
[Site "Chess.com"]
[Date "2020.05.19"]
[Round "3"]
[White "Kaliopa"]
[Black "Cambek64"]
[Result "0-1"]
[WhiteElo "2108"]
[BlackElo "2326"]
[TimeControl "180+1"]
[EndTime "12:29:24 PDT"]
[Termination "Cambek64 won on time"]

1. d4 {[%clk 0:03:00.9]} 1... d6 {[%clk 0:02:59.1]} 2. c4 {[%clk 0:03:00.7]}
2... e5 {[%clk 0:02:57.8]} 3. d5 {[%clk 0:03:00.8]} 3... f5 {[%clk 0:02:54.3]}
4. e4 {[%clk 0:03:00.2]} 4... Nf6 {[%clk 0:02:49.2]} 5. exf5 {[%clk 0:02:56.8]}
5... Bxf5 {[%clk 0:02:47.1]} 6. Nc3 {[%clk 0:02:56.4]} 6... Nbd7 {[%clk
0:02:35.1]} 7. Nge2 {[%clk 0:02:54]} 7... a5 {[%clk 0:02:27]} 8. Ng3 {[%clk
0:02:53.5]} 8... Bg6 {[%clk 0:02:26.1]} 9. Bd3 {[%clk 0:02:52.1]} 9... Bxd3
{[%clk 0:02:24.8]} 10. Qxd3 {[%clk 0:02:51.6]} 10... Nc5 {[%clk 0:02:24.9]} 11.
Qc2 {[%clk 0:02:42.5]} 11... Be7 {[%clk 0:02:18.5]} 12. O-O {[%clk 0:02:36.9]}
12... O-O {[%clk 0:02:18.5]} 13. Bd2 {[%clk 0:02:18.8]} 13... Qd7 {[%clk
0:02:15.4]} 14. Rae1 {[%clk 0:02:17.6]} 14... c6 {[%clk 0:02:10.9]} 15. Bg5
{[%clk 0:01:55.5]} 15... cxd5 {[%clk 0:02:08.8]} 16. Bxf6 {[%clk 0:01:53.2]}
16... Bxf6 {[%clk 0:02:01.7]} 17. Nxd5 {[%clk 0:01:53]} 17... Rad8 {[%clk
0:01:44.6]} 18. a3 {[%clk 0:01:43.7]} 18... a4 {[%clk 0:01:42.5]} 19. Ne4 {[%clk
0:01:18.9]} 19... Nb3 {[%clk 0:00:58.3]} 20. c5 {[%clk 0:00:54.3]} 20... dxc5
{[%clk 0:00:53.4]} 21. Ndxf6+ {[%clk 0:00:53]} 21... gxf6 {[%clk 0:00:51.7]} 22.
Qc4+ {[%clk 0:00:39.4]} 22... Kh8 {[%clk 0:00:38.7]} 23. Rc1 {[%clk 0:00:16.1]}
23... b5 {[%clk 0:00:37.1]} 24. Qe2 {[%clk 0:00:14.1]} 24... c4 {[%clk
0:00:36.2]} 25. Rfd1 {[%clk 0:00:11.2]} 25... Nd4 {[%clk 0:00:34.4]} 26. Qh5
{[%clk 0:00:10.8]} 26... Qf7 {[%clk 0:00:31.3]} 27. Qh6 {[%clk 0:00:10.8]} 27...
Qg6 {[%clk 0:00:28.4]} 28. Qe3 {[%clk 0:00:08.6]} 28... Rg8 {[%clk 0:00:19.9]}
29. g3 {[%clk 0:00:05]} 29... f5 {[%clk 0:00:15]} 30. Nc3 {[%clk 0:00:04.5]}
30... Rde8 {[%clk 0:00:14.7]} 31. Rxd4 {[%clk 0:00:03]} 31... exd4 {[%clk
0:00:12.6]} 32. Qxd4+ {[%clk 0:00:03.3]} 32... Qg7 {[%clk 0:00:10.1]} 33. Qd5
{[%clk 0:00:03.6]} 33... f4 {[%clk 0:00:05]} 34. Qxb5 {[%clk 0:00:02.4]} 34...
fxg3 {[%clk 0:00:05]} 35. hxg3 {[%clk 0:00:02.4]} 35... Rb8 {[%clk 0:00:05.2]}
36. Qxc4 {[%clk 0:00:01.2]} 36... Rxb2 {[%clk 0:00:05]} 0-1

[Event "*** Titled Tuesday Blitz"]
[Site "Chess.com"]
[Date "2020.05.19"]
[Round "3"]
[White "JozefKneht"]
[Black "GMKrikor"]
[Result "0-1"]
[WhiteElo "2515"]
[BlackElo "2761"]
[TimeControl "180+1"]
[EndTime "12:29:26 PDT"]
[Termination "GMKrikor won on time"]

1. e4 {[%clk 0:03:00.9]} 1... c5 {[%clk 0:02:58.4]} 2. Nf3 {[%clk 0:03:00.4]}
2... g6 {[%clk 0:02:57.6]} 3. d4 {[%clk 0:03:00.4]} 3... cxd4 {[%clk 0:02:57.1]}
4. Nxd4 {[%clk 0:03:01.3]} 4... Nc6 {[%clk 0:02:52.2]} 5. c4 {[%clk 0:03:01.6]}
5... Nf6 {[%clk 0:02:50.1]} 6. Nc3 {[%clk 0:03:01.5]} 6... d6 {[%clk 0:02:50.2]}
7. Be2 {[%clk 0:02:59.8]} 7... Nxd4 {[%clk 0:02:49.8]} 8. Qxd4 {[%clk
0:03:00.7]} 8... Bg7 {[%clk 0:02:50.3]} 9. Be3 {[%clk 0:03:01.2]} 9... O-O
{[%clk 0:02:49.7]} 10. Qd2 {[%clk 0:03:01.7]} 10... a5 {[%clk 0:02:50.3]} 11. f3
{[%clk 0:02:49.2]} 11... a4 {[%clk 0:02:35.9]} 12. O-O {[%clk 0:02:43.5]} 12...
Be6 {[%clk 0:02:33.3]} 13. Rab1 {[%clk 0:02:42.8]} 13... Qa5 {[%clk 0:02:25]}
14. b4 {[%clk 0:02:35.9]} 14... axb3 {[%clk 0:02:24.7]} 15. axb3 {[%clk
0:02:36.8]} 15... Qb4 {[%clk 0:02:13.6]} 16. Rfd1 {[%clk 0:02:24.2]} 16... Rfc8
{[%clk 0:02:11.2]} 17. Nb5 {[%clk 0:02:19]} 17... Qxd2 {[%clk 0:02:08.6]} 18.
Rxd2 {[%clk 0:02:17.5]} 18... Nd7 {[%clk 0:02:06.2]} 19. Kf2 {[%clk 0:02:02.6]}
19... Nc5 {[%clk 0:02:04.9]} 20. g4 {[%clk 0:01:59.7]} 20... Bd7 {[%clk
0:01:44.1]} 21. Nd4 {[%clk 0:01:52]} 21... Ra3 {[%clk 0:01:28.7]} 22. h4 {[%clk
0:01:28.2]} 22... Bxd4 {[%clk 0:01:16.9]} 23. Bxd4 {[%clk 0:01:28]} 23... Rxb3
{[%clk 0:01:04.5]} 24. Rdb2 {[%clk 0:01:27.6]} 24... Rxb2 {[%clk 0:01:02.2]} 25.
Rxb2 {[%clk 0:01:26.6]} 25... Bc6 {[%clk 0:00:57.1]} 26. g5 {[%clk 0:01:25.1]}
26... Ra8 {[%clk 0:00:52.2]} 27. e5 {[%clk 0:01:02.9]} 27... Ne6 {[%clk
0:00:47.9]} 28. Bc3 {[%clk 0:00:58.8]} 28... dxe5 {[%clk 0:00:41.8]} 29. Bxe5
{[%clk 0:00:58.3]} 29... Kf8 {[%clk 0:00:35.4]} 30. f4 {[%clk 0:00:48.3]} 30...
Nc5 {[%clk 0:00:35.1]} 31. h5 {[%clk 0:00:42.2]} 31... gxh5 {[%clk 0:00:32.1]}
32. Kg3 {[%clk 0:00:32.5]} 32... Ra3+ {[%clk 0:00:25.4]} 33. Kh4 {[%clk
0:00:32.3]} 33... Ne4 {[%clk 0:00:18.9]} 34. Bxh5 {[%clk 0:00:28]} 34... Ra1
{[%clk 0:00:13.6]} 35. Bf3 {[%clk 0:00:26.8]} 35... Rf1 {[%clk 0:00:12.3]} 36.
Bxe4 {[%clk 0:00:24.4]} 36... Bxe4 {[%clk 0:00:12.2]} 37. Ra2 {[%clk 0:00:21]}
37... f6 {[%clk 0:00:11.7]} 38. gxf6 {[%clk 0:00:19.3]} 38... exf6 {[%clk
0:00:12.6]} 39. Bd6+ {[%clk 0:00:18.9]} 39... Kf7 {[%clk 0:00:13.2]} 40. c5
{[%clk 0:00:17.2]} 40... Kg6 {[%clk 0:00:10]} 41. Re2 {[%clk 0:00:11.6]} 41...
Kf5 {[%clk 0:00:08.2]} 42. Rh2 {[%clk 0:00:09.3]} 42... Rg1 {[%clk 0:00:07.1]}
43. Kh3 {[%clk 0:00:06.1]} 43... h5 {[%clk 0:00:05.2]} 44. Kh4 {[%clk
0:00:05.3]} 44... Bf3 {[%clk 0:00:05.8]} 45. Rb2 {[%clk 0:00:02.3]} 45... Rh1+
{[%clk 0:00:05]} 46. Kg3 {[%clk 0:00:02.2]} 46... Bc6 {[%clk 0:00:05.6]} 0-1

[Event "*** Titled Tuesday Blitz"]
[Site "Chess.com"]
[Date "2020.05.19"]
[Round "3"]
[White "Bacyanide"]
[Black "BlackBoarder"]
[Result "1-0"]
[WhiteElo "2423"]
[BlackElo "2608"]
[TimeControl "180+1"]
[EndTime "12:29:26 PDT"]
[Termination "Bacyanide won by resignation"]

1. d4 {[%clk 0:03:00.9]} 1... e6 {[%clk 0:03:00.3]} 2. Nf3 {[%clk 0:03:00.9]}
2... f6 {[%clk 0:03:00.4]} 3. e4 {[%clk 0:02:58.5]} 3... d5 {[%clk 0:02:54.7]}
4. Nbd2 {[%clk 0:02:50.5]} 4... c6 {[%clk 0:02:52.5]} 5. Bd3 {[%clk 0:02:49.8]}
5... Bd6 {[%clk 0:02:47.4]} 6. O-O {[%clk 0:02:49.5]} 6... Ne7 {[%clk
0:02:45.5]} 7. c4 {[%clk 0:02:42.8]} 7... O-O {[%clk 0:02:40.5]} 8. b3 {[%clk
0:02:39.9]} 8... Nd7 {[%clk 0:02:33.7]} 9. Bb2 {[%clk 0:02:38.6]} 9... Bc7
{[%clk 0:02:31]} 10. Re1 {[%clk 0:02:35.3]} 10... Ng6 {[%clk 0:02:26]} 11. g3
{[%clk 0:02:17.2]} 11... Kh8 {[%clk 0:02:21]} 12. Qc2 {[%clk 0:02:17.1]} 12...
dxe4 {[%clk 0:01:54]} 13. Nxe4 {[%clk 0:01:59.2]} 13... e5 {[%clk 0:01:44.7]}
14. Rad1 {[%clk 0:01:44.5]} 14... exd4 {[%clk 0:00:52.7]} 15. Bxd4 {[%clk
0:01:40.4]} 15... Nde5 {[%clk 0:00:51.2]} 16. Be2 {[%clk 0:01:25]} 16... Qe8
{[%clk 0:00:28.1]} 17. Bc5 {[%clk 0:01:16.6]} 17... Rf7 {[%clk 0:00:20.7]} 18.
Nd6 {[%clk 0:01:13.4]} 18... Bxd6 {[%clk 0:00:20.7]} 19. Bxd6 {[%clk 0:01:08.5]}
19... Be6 {[%clk 0:00:07.4]} 20. Nxe5 {[%clk 0:00:58.3]} 20... Nxe5 {[%clk
0:00:07.3]} 21. Bh5 {[%clk 0:00:56]} 21... g6 {[%clk 0:00:06.6]} 22. Rxe5 {[%clk
0:00:51]} 22... fxe5 {[%clk 0:00:07.5]} 23. Bxe5+ {[%clk 0:00:51.4]} 23... Kg8
{[%clk 0:00:02.6]} 24. Be2 {[%clk 0:00:51.1]} 24... Bf5 {[%clk 0:00:01.6]} 25.
Qc3 {[%clk 0:00:46.7]} 25... Qe6 {[%clk 0:00:02]} 26. f4 {[%clk 0:00:45.4]}
26... Re8 {[%clk 0:00:02.2]} 27. Rd6 {[%clk 0:00:39.8]} 27... Qe7 {[%clk
0:00:02.5]} 28. Bf3 {[%clk 0:00:39.2]} 28... Qf8 {[%clk 0:00:02.2]} 29. c5
{[%clk 0:00:39]} 29... Rd7 {[%clk 0:00:02.5]} 30. Qd4 {[%clk 0:00:38.9]} 30...
Be6 {[%clk 0:00:03.4]} 31. h4 {[%clk 0:00:35.6]} 31... Rxd6 {[%clk 0:00:03.6]}
32. cxd6 {[%clk 0:00:34.8]} 32... Qf7 {[%clk 0:00:04.1]} 33. Kh2 {[%clk
0:00:34.5]} 33... Bd5 {[%clk 0:00:04.4]} 34. Bg4 {[%clk 0:00:33.2]} 34... Be6
{[%clk 0:00:04.3]} 35. Be2 {[%clk 0:00:32.8]} 35... Rd8 {[%clk 0:00:04.1]} 36.
Bd3 {[%clk 0:00:32]} 36... Rd7 {[%clk 0:00:04.5]} 37. Be2 {[%clk 0:00:30.8]}
37... h5 {[%clk 0:00:03.7]} 38. Bd3 {[%clk 0:00:28.6]} 38... Bf5 {[%clk
0:00:03.9]} 39. Bc4 {[%clk 0:00:28.7]} 39... Be6 {[%clk 0:00:04.4]} 40. Bd3
{[%clk 0:00:28.7]} 40... Bf5 {[%clk 0:00:04.9]} 41. Be2 {[%clk 0:00:29.1]} 41...
Be6 {[%clk 0:00:04.9]} 42. Bf3 {[%clk 0:00:28.6]} 42... Bd5 {[%clk 0:00:05.1]}
43. Bxd5 {[%clk 0:00:26.8]} 43... Qxd5 {[%clk 0:00:05]} 44. Qe3 {[%clk 0:00:20]}
44... Qe6 {[%clk 0:00:04.8]} 45. Qxa7 {[%clk 0:00:18.1]} 45... Kf7 {[%clk
0:00:04.4]} 46. Qf2 {[%clk 0:00:17.4]} 46... Qd5 {[%clk 0:00:04]} 47. Qe3 {[%clk
0:00:17]} 47... c5 {[%clk 0:00:03.9]} 48. Qc3 {[%clk 0:00:15.9]} 48... b5 {[%clk
0:00:03.5]} 49. a4 {[%clk 0:00:15.3]} 49... bxa4 {[%clk 0:00:02.7]} 50. bxa4
{[%clk 0:00:16.2]} 50... c4 {[%clk 0:00:03.2]} 51. a5 {[%clk 0:00:16.3]} 51...
Qd4 {[%clk 0:00:03.6]} 52. Qxd4 {[%clk 0:00:16.2]} 1-0